Cogmind - Beta 16 @@@ ROGUE MODE // 2026.01.22 @ 14:04:28 Player: Wulphy Result: Destroyed by B-86 Titan with Railgun Performance ------------- Evolutions (7) 3500 Regions Visited (28) 5600 Robots Destroyed (304) 1520 Value Destroyed (13591) 13591 Prototype IDs (68) 1360 Alien Tech Used (0) 0 Bonus (9328) 9328 TOTAL SCORE: 34899 Bonus ------- High Alert Combat Kills 476 Follower Combat Kills 3317 Network Hubs Disabled 200 Met Data Miner 300 Destroyed Z-Imprinter 1000 Triggered Deep Caves Wall 500 Exposed GOLEM Chamber 500 Met Warlord at Base 500 MAIN.C Attacked Warlord 500 Warlord Defense Kills 530 Built Enhanced Grunts 300 Met R17 at Cetus 500 Met R17 at Research 2000 Friendly Fire -1295 Cogmind --------- Core Integrity 0/1300 Matter 276/300 Energy 1051/1100 System Corruption 18% Temperature Cool (9) Movement Core (50) Location -3/Armory Parts ------- > --- POWER (2) -------- (None) > --- PROPULSION (5) --- Assembled Alloy Leg > --- UTILITY (11) ----- Assembled Biocell Array Experimental Signal Interpreter GOLEM Unit > --- WEAPON (3) ------- (None) > --- INVENTORY (5) ---- Vortex Chain Reactor Advanced System Restoration Module YOLO Cannon Peak State ------------ > --- POWER ------------ Quantum Reactor Quantum Reactor > --- PROPULSION ------- Cargo Legs Improved Thunder Leg Enhanced Biometal Leg Enhanced Biometal Leg > --- UTILITY ---------- Assembled Nanovents Assembled Nanovents Assembled Nanovents High-capacity Storage Unit Assembled Biocell Array Assembled Suspension Frame Advanced Sensor Array Experimental Signal Interpreter Assembled Combat Suite Assembled Alloy Armor Assembled Alloy Armor GOLEM Unit > --- WEAPON ----------- Assembled Focal Cannon Assembled Focal Cannon Assembled Focal Cannon > --- INVENTORY -------- Vortex Chain Reactor Experimental Cooling System Advanced Energy Well Zionite Biocell Advanced Kinecellerator Advanced Transmission Jammer Centrium Medium Armor Plating Thermal Barrier Deep Network Scanner Advanced System Restoration Module Improved Trap Extractor GOLEM Unit YOLO Cannon Vortex Lance Vortex Lance [Rating: 203] Favorites ----------- Power Assembled Flux Generator Engine Heavy Deuterium Engine Power Core Light Nuclear Core Reactor Assembled Flux Generator Propulsion Assembled Alloy Leg Treads Light Treads Leg Assembled Alloy Leg Wheel Armored Huge Wheel Utility High-capacity Storage Unit Device Seismic Detector Storage High-capacity Storage Unit Processor Experimental Signal Interpreter Hackware Authchip [R/Combat] Protection Layered Medium Armor Plating Weapon Assembled Focal Cannon Energy Gun Heavy Tesla Rifle Energy Cannon Assembled Focal Cannon Ballistic Gun Advanced KE Penetrator Ballistic Cannon Antimatter Cannon Launcher Heavy Rocket Launcher Special Weapon Plasma Cutter Impact Weapon Power Maul Slashing Weapon Greatsword Piercing Weapon Vortex Lance Build | -11 -10 -10 -8 -7 -7 -7 -7 -7 -7 -6 -6 -6 -6 -6 -6 -5 -5 -5 -5 -5 -4 -4 -4 -4 -4 -4 -3 -3 ------- Run | Yrd Mat Sub Mat Fac Was Fac Low Low Dat Pro Fac Low Low Zio Dee Pro Fac Upp Upp War Pro Fac Ext Cet Arc Hub Res Arm Slots Evolved 14 | . . . 4 2 . . . . . . 2 . . . . . 2 . . . . 2 . . . . 2 . Power 1 | . . . . . . . . . . . . . . . . . 1 . . . . . . . . . . . Propulsion 3 | . . . 2 . . . . . . . . . . . . . . . . . . . . . . . 1 . Utility 9 | . . . 2 2 . . . . . . 1 . . . . . 1 . . . . 2 . . . . 1 . Weapon 1 | . . . . . . . . . . . 1 . . . . . . . . . . . . . . . . . Parts Attached 220 | 8 4 7 14 17 5 18 2 3 17 7 22 2 . 6 26 2 6 2 . 11 . 10 4 6 2 1 6 12 Power 21 | 2 1 1 2 2 . 1 . 1 2 . 1 . . . 2 1 . . . . . 1 . 3 . . . 1 Engine 11 | 2 1 1 1 2 . 1 . 1 1 . 1 . . . . . . . . . . . . . . . . . Core 1 | . . . 1 . . . . . . . . . . . . . . . . . . . . . . . . . Reactor 9 | . . . . . . . . . 1 . . . . . 2 1 . . . . . 1 . 3 . . . 1 Propulsion 46 | 2 . 2 4 4 2 2 . 1 2 3 6 . . . 5 . 1 . . 3 . 1 1 . . . 2 5 Treads 16 | 2 . . 2 2 2 2 . . 1 1 2 . . . . . . . . . . 1 . . . . . 1 Leg 22 | . . . . . . . . . . 2 4 . . . 5 . 1 . . 3 . . 1 . . . 2 4 Wheel 8 | . . 2 2 2 . . . 1 1 . . . . . . . . . . . . . . . . . . . Hover . | . . . . . . . . . . . . . . . . . . . . . . . . . . . . . Flight . | . . . . . . . . . . . . . . . . . . . . . . . . . . . . . Utility 116 | 2 2 2 6 5 1 9 2 1 10 3 14 1 . 5 15 1 5 2 . 5 . 8 2 3 2 1 4 5 Device 52 | 1 1 . 3 3 . 5 . . 6 . 6 1 . 1 6 1 1 1 . 3 . 3 1 1 2 1 2 3 Storage 13 | 1 1 1 . . . 1 . . 1 1 2 . . . 1 . 1 . . 1 . 1 . . . . . 1 Processor 14 | . . . 1 1 . 1 . . 2 . 2 . . 4 1 . . . . 1 . . . . . . . 1 Hackware 2 | . . . . . . . . . . . 2 . . . . . . . . . . . . . . . . . Protection 35 | . . 1 2 1 1 2 2 1 1 2 2 . . . 7 . 3 1 . . . 4 1 2 . . 2 . Artifact . | . . . . . . . . . . . . . . . . . . . . . . . . . . . . . Weapon 37 | 2 1 2 2 6 2 6 . . 3 1 1 1 . 1 4 . . . . 3 . . 1 . . . . 1 Energy Gun 10 | . . 1 2 . 1 1 . . . 1 1 . . . 2 . . . . 1 . . . . . . . . Energy Cannon 7 | . 1 . . 1 . 1 . . 1 . . . . . 1 . . . . 1 . . . . . . . 1 Ballistic Gun 4 | 2 . . . . . 2 . . . . . . . . . . . . . . . . . . . . . . Ballistic Cannon 6 | . . . . 4 1 1 . . . . . . . . . . . . . . . . . . . . . . Launcher 5 | . . 1 . 1 . 1 . . . . . 1 . . 1 . . . . . . . . . . . . . Special Weapon 1 | . . . . . . . . . . . . . . 1 . . . . . . . . . . . . . . Impact Weapon 1 | . . . . . . . . . 1 . . . . . . . . . . . . . . . . . . . Slashing Weapon 1 | . . . . . . . . . 1 . . . . . . . . . . . . . . . . . . . Piercing Weapon 2 | . . . . . . . . . . . . . . . . . . . . 1 . . 1 . . . . . Special Melee Weapon . | . . . . . . . . . . . . . . . . . . . . . . . . . . . . . Unidentified Prototypes 33 | . . . . 1 1 6 . . 2 1 . . . 4 9 . . . . 7 . . . 1 . . . 1 Corrupted Parts 3 | . . . . . . . . . . 3 . . . . . . . . . . . . . . . . . . System Corruption 12 | . . . . . . . . . . 12 . . . . . . . . . . . . . . . . . . Parts Lost 65 | . . 4 1 . . 4 1 1 5 4 3 . . . 4 1 2 1 . . . 10 . . . 1 . 23 Power 8 | . . 2 . . . . . . 2 . . . . . . . . . . . . 1 . . . . . 3 Propulsion 11 | . . . 1 . . . . . 2 . . . . . 1 . . . . . . 1 . . . . . 6 Utility 30 | . . 1 . . . 3 1 1 . 3 2 . . . 3 . 1 1 . . . 5 . . . . . 9 Weapon 16 | . . 1 . . . 1 . . 1 1 1 . . . . 1 1 . . . . 3 . . . 1 . 5 Highest Loss Streak 17 | . . 2 1 . . 1 1 1 3 2 2 . . . 3 1 1 1 . . . 6 . . . 1 . 17 To Critical Strikes 1 | . . . . . . . . . . . . . . . . . . . . . . 1 . . . . . . Average Backups 17 | 5 10 20 23 21 19 20 22 22 23 22 19 17 17 17 17 16 15 15 15 15 16 15 15 16 16 16 15 15 Power . | . . . . . . . . . . 1 . . . . . . . 1 1 . 1 . 1 1 1 1 1 1 Propulsion 3 | 3 3 6 5 6 4 3 4 5 5 7 5 5 5 5 4 4 3 3 3 3 3 2 2 2 2 2 1 1 Utility 8 | . 2 6 7 7 9 8 7 7 7 6 6 6 6 6 7 9 8 9 9 8 9 9 10 10 10 10 10 10 Weapon 4 | 1 4 6 10 7 5 7 9 9 8 6 5 5 5 5 4 2 2 1 2 2 3 3 2 3 3 3 3 2 Tool/Special . | . . . . . . . . . . . . . . . . . . . . . . . . . . . . . Unused Backups 56 | . 4 . 11 11 2 9 1 . 2 . 5 . . . 4 . 1 . . 1 . 1 . . . . 1 3 Power 2 | . . . . . . 1 . . 1 . . . . . . . . . . . . . . . . . . . Propulsion 10 | . 3 . 2 3 1 . . . . . . . . . 1 . . . . . . . . . . . . . Utility 22 | . . . 3 3 1 6 . . . . 1 . . . 2 . 1 . . 1 . . . . . . 1 3 Weapon 21 | . 1 . 6 5 . 2 1 . 1 . 4 . . . 1 . . . . . . . . . . . . . Tool/Special 1 | . . . . . . . . . . . . . . . . . . . . . . 1 . . . . . . Average Slot Usage (%) 88 | . 99 96 95 82 76 82 90 90 86 91 96 91 93 87 91 93 87 85 82 79 82 86 88 92 93 93 94 83 Engine 3 | . 14 12 5 7 7 7 7 6 5 6 6 6 6 6 1 . . . . . . . . . . . . . Reactor 3 | . . . . . . . . . 1 . . . . . 4 6 5 5 5 5 5 5 5 8 10 10 9 7 Treads 4 | . 27 6 15 15 8 9 15 15 12 12 2 . . . . . . . . . . . . . . . . . Leg 15 | . . . . . . . . . . . 20 26 26 26 25 26 23 22 23 23 23 20 21 21 21 21 22 14 Wheel 2 | . . 21 18 8 7 7 7 7 8 9 1 . . . . . . . . . . . . . . . . . Device 15 | . 14 11 9 11 9 13 16 15 16 20 23 24 26 23 12 13 17 14 11 8 5 14 10 10 11 10 18 24 Storage 9 | . 14 14 9 7 7 7 7 7 7 7 7 6 6 6 8 13 11 11 11 13 11 10 10 10 10 10 9 11 Processor 5 | . . . 6 9 7 6 7 7 13 . . . . 2 7 6 5 5 5 5 11 10 10 10 10 10 9 4 Protection 8 | . . 1 9 7 12 12 12 13 7 17 12 6 6 6 9 6 4 5 5 5 5 9 14 15 13 15 9 8 Energy Gun 3 | . . 9 11 1 . . . . . 11 9 19 20 13 6 1 . . . . . . . . . . . . Energy Cannon 8 | . 9 3 4 2 . . 2 7 3 1 3 . . . 10 17 16 16 17 14 17 14 14 15 15 14 14 12 Ballistic Gun 2 | . 18 13 2 . . 2 7 7 1 . 2 . . . . . . . . . . . . . . . . . Ballistic Cannon 1 | . . . . 7 13 11 4 . 2 1 2 . . . . . . . . . . . . . . . . . Peak Build Rating 203 | 7 8 14 24 51 66 75 62 62 66 81 96 96 90 99 117 124 145 142 140 152 152 171 170 167 163 163 184 203 Average Rating 104 | 5 7 10 20 43 60 62 61 61 60 66 86 90 89 84 102 118 135 136 138 137 152 162 165 162 162 161 179 186 On Entrance 97 | . 7 8 14 22 48 63 61 62 62 63 81 91 90 90 99 117 118 137 138 140 152 152 168 163 163 163 162 181 Avg Prop Armor Cover (%) 11 | . . 12 15 9 6 9 14 15 12 8 6 . . . . . . . . 1 . 7 . . . . . 28 Naked Turns . | . . . . . . . . . . . . . . . . . . . . . . . . . . . . . Heaviest Build 153 | 15 31 92 105 127 140 141 116 116 128 130 142 105 92 91 100 108 141 152 150 152 147 153 151 151 151 151 152 152 Greatest Support 163 | 40 40 40 32 32 28 28 28 28 40 40 92 92 92 92 108 108 112 112 112 120 120 120 120 113 113 113 148 163 Greatest Overweight (x) 5 | 1 . 5 3 4 4 5 4 4 4 4 5 1 . . 1 . 1 1 1 1 1 2 1 1 1 1 1 1 Average Overweight (x) 1 | . . 1 2 3 4 4 3 3 3 3 . . . . . . 1 1 1 . 1 . 1 1 1 1 . . Largest Inventory Capacity 25 | 8 15 25 25 25 25 25 25 25 25 25 25 20 20 20 20 20 20 20 20 20 20 20 20 20 20 20 20 20 Average Capacity 21 | 7 13 22 25 25 25 25 25 25 25 25 21 20 20 20 20 20 20 20 20 20 20 20 20 20 20 20 20 19 Most Carried 25 | 7 15 25 25 25 25 25 25 25 25 25 25 20 20 20 20 20 20 20 20 20 20 20 20 20 20 20 20 20 Average Carried 20 | 5 10 20 24 24 24 24 24 24 24 23 21 19 19 19 19 19 19 19 20 19 20 19 19 20 20 20 19 19 Final Capacity 25 | 8 15 25 25 25 25 25 25 25 25 25 20 20 20 20 20 20 20 20 20 20 20 20 20 20 20 20 20 5 Final Carried 25 | 7 15 25 25 24 25 25 25 25 25 24 20 20 20 20 20 20 20 20 20 20 20 20 20 20 20 20 20 5 Class Distribution -------------------- 28% | Mutant 28% | Golem 12% | Tank 9% | Commander-Golem 6% | Scavenger-Mutant 4% | Trapper-Golem 3% | Scavenger-Golem Dominant Class ---------------- Mutant | -10/Materials Mutant | -10/Subcaves Mutant | -8/Materials Scavenger-Mutant | -7/Factory Mutant | -7/Waste Mutant | -7/Factory Mutant | -7/Lower Caves Mutant | -7/Lower Caves Mutant | -7/Data Miner Scavenger-Mutant | -6/Proximity Caves Scavenger-Tank | -6/Factory Tank | -6/Lower Caves Tank | -6/Lower Caves Tank | -6/Zion Tank | -6/Deep Caves Golem | -5/Proximity Caves Golem | -5/Factory Golem | -5/Upper Caves Trapper-Golem | -5/Upper Caves Commander-Golem | -5/Warlord Golem | -4/Proximity Caves Golem | -4/Factory Commander-Golem | -4/Extension Commander-Golem | -4/Cetus Commander-Golem | -4/Archives Commander-Golem | -4/Hub_04(d) Golem | -3/Research Golem | -3/Armory Resources | -11 -10 -10 -8 -7 -7 -7 -7 -7 -7 -6 -6 -6 -6 -6 -6 -5 -5 -5 -5 -5 -4 -4 -4 -4 -4 -4 -3 -3 ----------- Run | Yrd Mat Sub Mat Fac Was Fac Low Low Dat Pro Fac Low Low Zio Dee Pro Fac Upp Upp War Pro Fac Ext Cet Arc Hub Res Arm Matter Collected 8001 | 325 382 242 191 505 84 1339 285 76 250 242 765 364 21 43 768 344 130 216 94 156 . 296 233 133 58 10 80 369 Remotely 1587 | . . . . 100 . 964 63 . . 224 236 . . . . . . . . . . . . . . . . . Salvage Created 14466 | 151 479 194 403 456 . 1206 275 33 371 209 1388 703 204 . 1053 416 874 508 86 245 205 2070 460 29 65 161 309 1913 Parts 666 | 10 21 14 33 22 . 56 12 6 10 17 37 23 1 . 37 16 29 27 6 11 8 126 13 . 6 10 9 106 Haulers Intercepted 9 | . 1 . 1 1 . 2 . . . . 3 . . . . . 1 . . . . . . . . . . . Recyclers Shooed 8 | . . . 1 1 . 2 . . . . 3 . . . . . . . . . . 1 . . . . . . Parts Field Recycled . | . . . . . . . . . . . . . . . . . . . . . . . . . . . . . Retrieved Matter . | . . . . . . . . . . . . . . . . . . . . . . . . . . . . . Parts Self-Destructed 110 | . . 1 . . . . 12 10 . 9 . 19 8 . . 13 . 31 . . 7 . . . . . . . Prevented 35 | . . . . . . . 4 4 . 6 . 15 . . . 5 . . . . 1 . . . . . . . Parts Restored . | . . . . . . . . . . . . . . . . . . . . . . . . . . . . . Kills | -11 -10 -10 -8 -7 -7 -7 -7 -7 -7 -6 -6 -6 -6 -6 -6 -5 -5 -5 -5 -5 -4 -4 -4 -4 -4 -4 -3 -3 ------- Run | Yrd Mat Sub Mat Fac Was Fac Low Low Dat Pro Fac Low Low Zio Dee Pro Fac Upp Upp War Pro Fac Ext Cet Arc Hub Res Arm Combat Hostiles Destroyed 281 | . 10 4 9 13 . 24 10 1 4 10 11 10 3 . 51 12 15 12 1 5 5 29 4 . . 2 4 32 Melee 4 | . . . . . . . . . 2 . . . . . . . . . . . . . . . . . . 2 Guns 30 | . 6 1 6 . . 2 . . . 1 5 6 . . 2 1 . . . . . . . . . . . . Cannons 166 | . 4 . 2 10 . 19 7 1 1 1 5 . . . 8 7 15 8 1 5 5 27 4 . . 2 4 30 AOE 66 | . . 3 . 3 . 3 3 . . 5 . 2 . . 37 4 . 4 . . . 2 . . . . . . Classes Destroyed 30 | 2 3 1 2 1 . 3 . 2 . 1 1 2 1 . 4 1 . . . 1 . 2 . . . . 2 1 Worker 4 | . . . . . . 1 . . . . 3 . . . . . . . . . . . . . . . . . Builder 15 | . . . . . . 7 . . . . 1 . . . . . . . . . . 7 . . . . . . Tunneler 4 | 3 . . . . . 1 . . . . . . . . . . . . . . . . . . . . . . Hauler 9 | . 1 . 1 1 . 2 . . . . 3 . . . . . 1 . . . . . . . . . . . Recycler 17 | 1 2 . . 1 . 4 . . . . 5 . . . . . . . . . . 3 1 . . . . . Minesweeper 3 | . . . . . . . . 1 . . . 1 . . . . . 1 . . . . . . . . . . Operator 4 | . . . . . . . . . . . 1 . . . . . . . . . . . . . 2 . 1 . Drone 2 | . . . . . . . . . . 2 . . . . . . . . . . . . . . . . . . Watcher 3 | . . . . . . . . . . . . . . . . . . . . . . 1 . . . . . 2 Swarmer 63 | . 5 . 3 4 . 4 5 . . 4 3 2 . . . 4 4 6 . . 3 8 . . . . . 8 Cutter 2 | . . . . . . 2 . . . . . . . . . . . . . . . . . . . . . . Saboteur 3 | . . . . . . . . . . . . . . . . . . . . 1 . . . . . . . 2 Grunt 53 | . 5 1 . 4 . 6 4 . . . . 4 . . . 6 7 2 . 2 . 5 . . . . . 7 Brawler 3 | . . . . . . . . . . . . 2 . . . . 1 . . . . . . . . . . . Duelist 2 | . . . . . . . . . . . . 1 . . . . . . . . . . . . . . . 1 Sentry 31 | . . . 5 1 . 6 1 . . 1 3 1 . . . 1 1 1 . . . 2 4 . . 1 1 2 Demolisher 2 | . . . . . . . . . . . . . . . . . . . . . . . . . . . 1 1 Specialist 5 | . . . . . . . . . . . . . . . . . . . . . . 2 . . . . . 3 Hunter 12 | . . . 1 1 . . . . . 2 . 1 . . . . . . . . 2 2 . . . 1 1 1 Programmer 38 | . . . . 3 . 6 . . . 1 5 . . . . . 2 3 . 2 . 10 . . . . . 6 Heavy 1 | . . . . . . . . . . . . . . . . . . . . . . . . . . . . 1 Behemoth 1 | . . . . . . . . . . . . . . . . 1 . . . . . . . . . . . . Enhanced Grunt 4 | . . . . . . . . . 4 . . . . . . . . . . . . . . . . . . . Striker 1 | . . . . . . . . . . . . . . . . . . . . . . . . . . . 1 . Subdweller 3 | . . 3 . . . . . . . . . . . . . . . . . . . . . . . . . . Z-Light 7 | . . . . . . . . . . . . . . . 7 . . . . . . . . . . . . . Thief 1 | . . . . . . . . 1 . . . . . . . . . . . . . . . . . . . . Assembler 2 | . . . . . . . . . . . . . . . 2 . . . . . . . . . . . . . Assembled 39 | . . . . . . . . . . . . . . . 39 . . . . . . . . . . . . . Golem 4 | . . . . . . . . . . . . . . . 4 . . . . . . . . . . . . . Thug 1 | . . . . . . . . . . . . . 1 . . . . . . . . . . . . . . . Savage 1 | . . . . . . . . . . . . . 1 . . . . . . . . . . . . . . . Mutant 2 | . . . . . . . . . . . . . 1 . . . . . 1 . . . . . . . . . Best Kill Streak 40 | 3 2 3 3 4 . 11 3 1 2 5 4 4 1 . 40 5 8 4 1 2 5 14 1 . 1 2 3 8 Combat Bots Only 38 | . 2 3 3 4 . 4 3 1 2 5 3 4 1 . 38 5 8 4 1 2 5 8 1 . . 2 3 7 Max Kills in Single Turn 32 | 1 1 1 1 1 . 5 2 1 1 4 2 2 1 . 32 2 1 2 1 1 1 5 1 1 1 1 1 1 Gunslinging 1 | . . . . . . . . . . . . 1 . . . . . . . . . . . . . . . . Exploded 31 | . . 1 . 1 . 2 2 . . 4 . 2 . . 31 2 . 2 . . . 1 . . . . . . Melee 1 | . . . . . . . . . 1 . . . . . . . . . . . . . . . . . . 1 Uniques/NPCs Destroyed 3 | . . . . . . . . . 1 . . . . . 1 . . . . . . . . 1 . . . . Data Miner (-7/Data Miner) Z-Imprinter (-6/Deep Caves) A7 (-4/Cetus) Combat | -11 -10 -10 -8 -7 -7 -7 -7 -7 -7 -6 -6 -6 -6 -6 -6 -5 -5 -5 -5 -5 -4 -4 -4 -4 -4 -4 -3 -3 -------- Run | Yrd Mat Sub Mat Fac Was Fac Low Low Dat Pro Fac Low Low Zio Dee Pro Fac Upp Upp War Pro Fac Ext Cet Arc Hub Res Arm Hostile Shots Fired 1993 | . 39 16 47 87 . 261 73 4 27 85 99 30 4 . 110 63 90 41 . 9 9 353 42 3 . 48 6 447 Missed 617 | . 10 5 11 24 . 84 18 . 3 25 38 13 3 . 33 20 24 7 . 2 3 122 18 . . 10 1 143 Deflected 11 | . . . . . . . . . . . . . . . . . . . . . . . . . . . . 11 Hits 1376 | . 29 11 36 63 . 177 55 4 24 60 61 17 1 . 77 43 66 34 . 7 6 231 24 3 . 38 5 304 Melee 12 | . . . . . . 4 . 2 . . . . . . 5 . . . . 1 . . . . . . . . Projectile 1364 | . 29 11 36 63 . 173 55 2 24 60 61 17 1 . 72 43 66 34 . 6 6 231 24 3 . 38 5 304 AOE 13 | . . 4 . . . 1 . . . . . . . . . . . . . . . . . . . . 3 5 Critical Strikes 44 | . 1 . . 1 . 3 1 . . 1 1 1 . . . 2 2 1 . 2 . 6 1 1 . 8 . 12 Part Disruptions 3 | . . . . . . . . . 1 . 1 . . . . . . . . . . . . . . . . 1 Damage Taken 23789 | . 313 479 500 803 . 2203 652 52 1032 842 683 296 12 . 2424 804 1251 641 . 104 47 3105 398 224 . 926 190 5808 Core 2848 | . 68 110 77 36 . 178 31 . 142 148 60 14 . . 248 32 56 48 . . 8 193 26 47 . 17 41 1268 Absorbed by Shields 496 | . . . . . . 91 . . . . 48 75 . . . . . . . 77 45 27 46 . . . . 87 Reduced by Siege Mode 4 | . . . . . . 4 . . . . . . . . . . . . . . . . . . . . . . Redirected to Shielding 326 | . . . . . . . 20 . . 54 . . . . 252 . . . . . . . . . . . . . Ignored by Resistances 1929 | . . . . . . 21 . . . 17 50 . . . . . . . . . . 909 102 45 . 186 39 560 Regen/Repaired (Parts) 484 | . 41 . 157 . 286 . . . . . . . . . . . . . . . . . . . . . . . Core Remaining (%) 65 | 100 . 28 86 . . . . . . 23 . . . . . 58 . . . . 88 . . . . 75 . . Volleys Fired 752 | 8 38 37 29 35 . 79 25 4 5 22 45 14 5 . 50 22 53 17 4 12 10 107 14 6 3 5 7 96 Largest 3 | 2 2 2 2 2 . 2 2 2 1 2 3 3 3 . 3 3 3 3 3 3 3 3 3 3 3 3 3 3 Hottest 270 | 40 80 80 120 120 . 91 90 125 33 140 210 210 210 . 270 110 75 75 75 75 75 75 75 75 75 75 75 138 Shots Fired 1491 | 16 76 52 58 49 . 136 34 6 5 38 116 40 15 . 120 50 97 39 8 30 20 189 38 18 9 11 20 201 Gun 359 | 16 51 37 47 2 . 13 9 4 . 21 61 36 15 . 42 5 . . . . . . . . . . . . Cannon 1096 | . 25 8 11 44 . 120 23 2 5 11 55 4 . . 70 40 97 37 8 30 20 189 38 18 9 11 20 201 Launcher 36 | . . 7 . 3 . 3 2 . . 6 . . . . 8 5 . 2 . . . . . . . . . . Special . | . . . . . . . . . . . . . . . . . . . . . . . . . . . . . Kinetic 345 | 16 51 15 2 36 . 126 27 4 5 13 50 . . . . . . . . . . . . . . . . . Thermal 962 | . 25 30 56 10 . 7 5 2 . 3 32 4 . . 70 40 97 37 8 30 20 189 38 18 9 11 20 201 Explosive 36 | . . 7 . 3 . 3 2 . . 6 . . . . 8 5 . 2 . . . . . . . . . . Electromagnetic 130 | . . . . . . . . . . 16 34 36 15 . 29 . . . . . . . . . . . . . Phasic 18 | . . . . . . . . . . . . . . . 13 5 . . . . . . . . . . . . Robot Hit Streak 44 | 4 11 12 12 8 . 15 9 8 11 9 12 6 5 . 18 13 44 22 5 8 11 12 14 5 5 5 6 21 Robot Miss Streak 9 | 1 6 1 1 3 . 5 2 . 1 9 4 1 2 . 4 2 1 2 . 1 2 4 1 1 1 1 2 3 Penetration Max 1 | . . . . . . 1 . . . . 1 . . . . . . . . . . . . . . . . . Secondary Targets 3 | . . . . . . . . . . . 1 2 . . . . . . . . . . . . . . . . Max Gunslinging Chain 1 | . . . . . . . . . . . 1 1 . . . . . . . . . . . . . . . . Shots Hit Robots 903 | 9 46 30 43 32 . 79 15 5 24 20 72 28 11 . 65 36 71 22 3 16 9 78 30 13 5 6 11 124 Core Hits 497 | 5 20 12 11 21 . 50 14 3 9 9 30 18 2 . 91 23 20 15 2 8 6 50 11 3 1 4 7 52 Critical Kills 5 | . . 1 1 . . 2 . . . . 1 . . . . . . . . . . . . . . . . . Critical Parts Destroyed 6 | . . 1 . . . 1 2 . . . 2 . . . . . . . . . . . . . . . . . Critical Strikes 39 | . . 2 1 4 . 15 4 . 5 . 4 1 . . . . . . . . . . . . . . . 3 Destroy 12 | . . 2 1 . . 4 2 . . . 3 . . . . . . . . . . . . . . . . . Blast 17 | . . . . 4 . 11 2 . . . . . . . . . . . . . . . . . . . . . Corrupt 2 | . . . . . . . . . . . 1 1 . . . . . . . . . . . . . . . . Sever 5 | . . . . . . . . . 5 . . . . . . . . . . . . . . . . . . . Sunder 3 | . . . . . . . . . . . . . . . . . . . . . . . . . . . . 3 Melee Attacks 61 | . . . . . . . . . 37 . . . . . . . . . . . . . 6 . . . . 18 Impact 2 | . . . . . . . . . 2 . . . . . . . . . . . . . . . . . . . Slashing 35 | . . . . . . . . . 35 . . . . . . . . . . . . . . . . . . . Piercing . | . . . . . . . . . . . . . . . . . . . . . . . . . . . . . Entropic 24 | . . . . . . . . . . . . . . . . . . . . . . . 6 . . . . 18 Sneak Attacks 1 | . . . . . . . . . 1 . . . . . . . . . . . . . . . . . . . Combat Hostiles . | . . . . . . . . . . . . . . . . . . . . . . . . . . . . . Follow-up Attacks . | . . . . . . . . . . . . . . . . . . . . . . . . . . . . . Damage Inflicted 44190 | 126 671 759 868 1354 . 3511 798 156 1390 1228 3101 1104 328 . 5283 2283 3428 1649 145 891 426 5235 1395 671 243 342 510 6295 Guns 5930 | 126 357 241 783 18 . 368 199 79 . 401 1291 887 328 . 696 156 . . . . . . . . . . . . Cannons 28481 | . 314 123 85 1098 . 2583 363 77 148 213 1427 118 . . 1262 1436 3428 1257 145 891 426 4670 1378 671 243 302 495 5328 Explosions 7357 | . . 395 . 238 . 555 236 . . 614 332 99 . . 3325 691 . 392 . . . 480 . . . . . . Melee 2204 | . . . . . . . . . 1242 . . . . . . . . . . . . . . . . . . 962 Ramming 218 | . . . . . . 5 . . . . 51 . . . . . . . . . . 85 17 . . 40 15 5 Kinetic 6696 | 126 357 140 . 992 . 2951 562 79 148 249 1092 . . . . . . . . . . . . . . . . . Thermal 25302 | . 314 224 868 124 . . . 77 . 37 906 217 . . 1446 1436 3428 1257 145 891 426 5089 1378 671 243 302 495 5328 Explosive 6565 | . . 395 . 238 . 555 236 . . 614 303 . . . 3141 691 . 392 . . . . . . . . . . Electromagnetic 2950 | . . . . . . . . . . 328 749 887 328 . 597 . . . . . . 61 . . . . . . Impact 104 | . . . . . . . . . 104 . . . . . . . . . . . . . . . . . . . Slashing 1138 | . . . . . . . . . 1138 . . . . . . . . . . . . . . . . . . . Piercing . | . . . . . . . . . . . . . . . . . . . . . . . . . . . . . Entropic 962 | . . . . . . . . . . . . . . . . . . . . . . . . . . . . 962 Phasic 255 | . . . . . . . . . . . . . . . 99 156 . . . . . . . . . . . . Highest Corruption 18 | . . . . . . 1 . . . 12 4 1 1 3 3 3 . 4 4 4 . 6 6 6 6 5 . 18 Average Corruption 2 | . . . . . . 1 . . . 9 1 1 1 2 3 3 . 1 4 4 . 2 6 6 5 3 . 5 Corruption Purged 10 | . . . . . . 1 . . . . 3 . . . . . . . . . . . . . 6 . . . Corruption Blocked . | . . . . . . . . . . . . . . . . . . . . . . . . . . . . . Effects 273 | . . . . . . 9 . . . . 19 10 6 12 43 14 . 14 23 2 . 29 45 22 2 . . 23 Message Errors 59 | . . . . . . 1 . . . . 1 3 3 3 13 2 . 5 5 . . 8 7 4 . . . 4 Matter Fused 74 | . . . . . . 1 . . . . 4 2 2 4 7 8 . 3 10 1 . 3 15 5 1 . . 8 Heat Flow Errors 29 | . . . . . . 2 . . . . 3 . . 2 5 1 . . 2 . . 4 5 3 1 . . 1 Energy Discharges 42 | . . . . . . 1 . . . . 6 1 . . 8 . . 3 3 1 . 5 7 4 . . . 3 Parts Rejected 6 | . . . . . . . . . . . . . . . 1 . . 1 . . . 2 . . . . . 2 Parts Fused 2 | . . . . . . . . . . . . . . 1 . . . . 1 . . . . . . . . . Data Loss (minor) 29 | . . . . . . 1 . . . . 2 3 1 2 4 . . 2 . . . 3 7 3 . . . 1 Data Loss (major) 10 | . . . . . . . . . . . . . . . . 1 . . 2 . . 3 3 1 . . . . Misfires 15 | . . . . . . 2 . . . . 3 1 . . 3 2 . . . . . 1 1 . . . . 2 Alerts 5 | . . . . . . 1 . . . . . . . . 1 . . . . . . . . 2 . . . 1 Misdirections 1 | . . . . . . . . . . . . . . . . . . . . . . . . . . . . 1 Weapon Failures 1 | . . . . . . . . . . . . . . . 1 . . . . . . . . . . . . . Overload Shots . | . . . . . . . . . . . . . . . . . . . . . . . . . . . . . Overflow Damage 1860 | . . . . 12 . 56 23 . 141 93 175 . . . 272 55 296 86 . 39 25 283 . . 57 . . 247 Projectiles 1283 | . . . . 12 . 56 7 . . 48 175 . . . 40 34 296 60 . 39 25 269 . . 57 . . 165 Explosions 354 | . . . . . . . 16 . . 45 . . . . 232 21 . 26 . . . 14 . . . . . . Melee 223 | . . . . . . . . . 141 . . . . . . . . . . . . . . . . . . 82 Knockbacks 20 | . . . . 5 . 6 1 . 1 1 5 . . . . . . . . . . . . . . 1 . . Impact 2 | . . . . . . . . . . . 1 . . . . . . . . . . . . . . 1 . . Kinetic 17 | . . . . 5 . 5 1 . 1 1 4 . . . . . . . . . . . . . . . . . Secondary 1 | . . . . . . 1 . . . . . . . . . . . . . . . . . . . . . . Self-Inflicted Damage 393 | . . . . 32 . 40 . . . 28 41 . . . 150 89 . . . . . 11 . . . . . 2 Shots 10 | . . . . 1 . 1 . . . 1 1 . . . 3 2 . . . . . 1 . . . . . . Rammed 2 | . . . . . . 1 . . . . . . . . . . . . . . . . . . . . . 1 Targets Rammed 18 | . . . . . . 1 . . . . 4 . . . . . . . . . . 7 2 . . 2 1 1 Kicked 16 | . . . . . . . . . . . 4 . . . . . . . . . . 7 2 . . 2 1 . Crushed . | . . . . . . . . . . . . . . . . . . . . . . . . . . . . . Highest Temperature 354 | 6 54 . 177 208 . 330 152 42 . 138 284 256 108 216 316 354 12 122 229 41 18 264 268 192 118 72 9 317 Average Temperature 69 | 6 15 . 55 72 . 69 37 22 . 58 56 78 39 92 110 140 7 64 84 14 7 46 91 63 40 31 9 82 Received Heat Transfer 4428 | . 117 42 135 129 . 447 213 9 . 30 48 73 . . 435 459 540 108 . 37 . 321 70 18 . 146 30 1021 Effects 12 | . . . . . . . . . . . 1 1 . . 5 1 . . . . . 1 . . . . . 3 Energy Bleed 4 | . . . . . . . . . . . 1 . . . 2 . . . . . . 1 . . . . . . Interference 7 | . . . . . . . . . . . . 1 . . 3 . . . . . . . . . . . . 3 Damage (minor) 1 | . . . . . . . . . . . . . . . . 1 . . . . . . . . . . . . Siege Activations 2 | . . . . . . 2 . . . . . . . . . . . . . . . . . . . . . . Total Turns 14 | . . . . . . 14 . . . . . . . . . . . . . . . . . . . . . . Longest Duration 8 | . . . . . . 8 . . . . . . . . . . . . . . . . . . . . . . Martial Activations . | . . . . . . . . . . . . . . . . . . . . . . . . . . . . . Shielding Activations 7 | . . . . . . . . . . . . . . . . . . . . . . . . . . . . 7 Total Turns 130 | . . . . . . . . . . . . . . . . . . . . . . . . . . . . 130 Longest Duration 39 | . . . . . . . . . . . . . . . . . . . . . . . . . . . . 39 Robots Disrupted 1 | . . . . . . . . . . . . . 1 . . . . . . . . . . . . . . . Combat Hostiles 1 | . . . . . . . . . . . . . 1 . . . . . . . . . . . . . . . Robots Corrupted 16 | . . . . . . . . . 1 2 4 2 3 . 4 . . . . . . . . . . . . . Combat Hostiles 13 | . . . . . . . . . 1 2 1 2 3 . 4 . . . . . . . . . . . . . Parts Fried 24 | . . . . . . . . . . 4 8 3 8 . . . . . . . . . 1 . . . . . Impact Corruptions 1 | . . . . . . . . . 1 . . . . . . . . . . . . . . . . . . . Robots Melted 1 | . . . 1 . . . . . . . . . . . . . . . . . . . . . . . . . Combat Hostiles 1 | . . . 1 . . . . . . . . . . . . . . . . . . . . . . . . . Parts Melted 12 | . . . . . . . . . . . . . . . 1 . 2 . . . . 3 . . . . 3 3 Heat Transferred 13755 | . 666 384 1135 173 . . . . . . 50 100 . . 348 725 1800 575 75 462 250 2400 775 350 150 175 300 2862 Parts Sabotaged . | . . . . . . . . . . . . . . . . . . . . . . . . . . . . . Parts Stolen 2 | . . . . . . . . 2 . . . . . . . . . . . . . . . . . . . . Parts Stripped . | . . . . . . . . . . . . . . . . . . . . . . . . . . . . . Power Chain Reactions 4 | . . . . . . . . . . . 1 1 . . 2 . . . . . . . . . . . . . Alert | -11 -10 -10 -8 -7 -7 -7 -7 -7 -7 -6 -6 -6 -6 -6 -6 -5 -5 -5 -5 -5 -4 -4 -4 -4 -4 -4 -3 -3 ------- Run | Yrd Mat Sub Mat Fac Was Fac Low Low Dat Pro Fac Low Low Zio Dee Pro Fac Upp Upp War Pro Fac Ext Cet Arc Hub Res Arm Maximum Alert Level 3 | . . . . . . 2 . . . . 1 . . . . . 1 . . . . 2 3 2 1 1 . 2 Low Security (%) 61 | 100 100 . 100 100 100 23 . . . . 82 . . . . . 85 . . . . 46 . . . 61 100 65 Level 1 16 | . . . . . . 23 . . . . 17 . . . . . 14 . . . . 6 70 21 99 38 . 12 Level 2 20 | . . . . . . 53 . . . . . . . . . . . . . . . 47 11 78 . . . 22 Level 3 1 | . . . . . . . . . . . . . . . . . . . . . . . 17 . . . . . Level 4 . | . . . . . . . . . . . . . . . . . . . . . . . . . . . . . Level 5 . | . . . . . . . . . . . . . . . . . . . . . . . . . . . . . High Security . | . . . . . . . . . . . . . . . . . . . . . . . . . . . . . Max Security . | . . . . . . . . . . . . . . . . . . . . . . . . . . . . . Peak Influence 802 | 10 86 . 132 161 54 608 . . . . 242 . . . . . 238 . . . . 588 802 559 348 318 82 600 Initial 437 | . . . . 23 54 . . . . . 150 . . . . . . . . . . . 279 437 193 104 60 . Average 200 | 1 23 . 49 42 6 372 . . . . 165 . . . . . 63 . . . . 302 396 459 316 174 16 187 Influence Increases 10457 | 20 315 20 312 445 . 1357 235 35 21 200 887 376 84 . . 360 414 305 . 206 168 1120 1293 401 195 423 156 1109 Destroy 0b10 Robot/C 5740 | . 200 20 180 260 . 740 200 . 20 160 320 300 80 . . 240 300 240 . 140 100 580 580 160 80 120 80 640 Destroy 0b10 Robot/NC 340 | 20 15 . 5 10 . 75 . 5 . 10 65 5 . . . . 5 5 . . . 55 20 10 10 10 5 10 Destroy Leader 1080 | . 32 . 72 62 . 234 20 . . 30 136 10 . . . 30 52 30 . . 20 112 54 . . 32 30 124 Allied During Kill 1139 | . . . . . . 116 . . 1 . 22 31 4 . . . . . . 51 3 . 507 170 90 144 . . Trap Triggered on 0b10 20 | . . . . . . . . . . . . . . . . . . . . . . 20 . . . . . . Successful Hack 252 | . 22 . 7 27 . 19 . . . . 40 . . . . . . . . . . 31 20 9 . . 14 63 Select Force Hacks 50 | . . . . . . . . . . . . . . . . . . . . . . . . . . 50 . . Disable Machine 630 | . . . 15 75 . 75 . . . . 105 . . . . . 15 . . . . 90 90 . 15 . 15 135 Destroy Structure 636 | . 1 . 3 11 . 83 . . . . 34 . . . . . 42 . . . . 202 22 52 . 52 12 122 Advance Influence 150 | . . . . . . . . . . . 150 . . . . . . . . . . . . . . . . . Partial Spotted 15 | . 15 . . . . . . . . . . . . . . . . . . . . . . . . . . . Lose Combat Pursuer 405 | . 30 . 30 . . 15 15 30 . . 15 30 . . . 90 . 30 . 15 45 30 . . . 15 . 15 Influence Decreases 10000 | 20 300 35 259 341 157 781 777 69 21 200 675 517 155 . . 360 237 455 27 156 218 550 1081 699 381 604 273 652 Entered New Map 1757 | . . 8 . 30 103 . 214 7 . . . 79 15 . . . . 67 6 . 50 . 291 345 291 194 57 . Time Decay 6828 | 20 300 27 259 297 54 641 553 62 10 160 595 398 120 . . 350 217 378 21 36 148 450 550 334 90 140 216 402 Lost Part 500 | . . . . . . 40 10 . . 40 30 . . . . 10 20 10 . . . 100 . . . 10 . 230 Lost Ally 901 | . . . . . . 100 . . 11 . 50 40 20 . . . . . . 120 20 . 240 20 . 260 . 20 Purge Threat 14 | . . . . 14 . . . . . . . . . . . . . . . . . . . . . . . . Squads Dispatched 73 | . 1 . 5 4 . 19 . . . . 7 . . . . . 6 . . . . 12 1 . . 5 6 7 Investigation 7 | . . . 1 . . . . . . . . . . . . . 2 . . . . 1 . . . 2 1 . Extermination 22 | . . . . 2 . 4 . . . . 4 . . . . . 3 . . . . 5 . . . . . 4 Reinforcement 27 | . 1 . 1 2 . 7 . . . . 2 . . . . . 1 . . . . 4 . . . 1 5 3 Assault 4 | . . . . . . . . . . . . . . . . . . . . . . 1 1 . . 2 . . Garrison 13 | . . . 3 . . 8 . . . . 1 . . . . . . . . . . 1 . . . . . . Intercept . | . . . . . . . . . . . . . . . . . . . . . . . . . . . . . Searches Triggered . | . . . . . . . . . . . . . . . . . . . . . . . . . . . . . Construction Impeded 7 | . . . . . . 2 . . . . 1 . . . . . 1 . . . . 2 . . . 1 . . Haulers Reinforced 2 | . . . . . . . . . . . . . . . . . . . . . . . . . . . 2 . Active Scanning Responses . | . . . . . . . . . . . . . . . . . . . . . . . . . . . . . Cargo Convoy Interrupts 1 | . . . . . . 1 . . . . . . . . . . . . . . . . . . . . . . Stealth | -11 -10 -10 -8 -7 -7 -7 -7 -7 -7 -6 -6 -6 -6 -6 -6 -5 -5 -5 -5 -5 -4 -4 -4 -4 -4 -4 -3 -3 --------- Run | Yrd Mat Sub Mat Fac Was Fac Low Low Dat Pro Fac Low Low Zio Dee Pro Fac Upp Upp War Pro Fac Ext Cet Arc Hub Res Arm Distress Signals 34 | . 1 . 1 2 . 5 . . . . 2 . . . . . . . . . . 2 3 3 . 3 8 4 Communications Jammed 20 | . . . . . . . . . . . . . . . . . . . . . . . . . . . . 20 Distress Signals 18 | . . . . . . . . . . . . . . . . . . . . . . . . . . . . 18 Times Spotted 533 | . 16 5 11 27 . 52 11 7 4 9 27 17 7 . 52 19 18 15 1 40 7 50 33 10 2 20 14 59 Peak Tracking Total 37 | . 4 2 3 4 . 4 4 6 2 4 3 7 4 . 37 5 8 4 1 12 6 12 5 5 1 15 4 15 Tactical Retreats 27 | . 2 . 1 . . 1 1 1 . . 1 1 4 . 3 5 . 1 . 1 1 2 . . . 1 . 1 Traps | -11 -10 -10 -8 -7 -7 -7 -7 -7 -7 -6 -6 -6 -6 -6 -6 -5 -5 -5 -5 -5 -4 -4 -4 -4 -4 -4 -3 -3 ------- Run | Yrd Mat Sub Mat Fac Was Fac Low Low Dat Pro Fac Low Low Zio Dee Pro Fac Upp Upp War Pro Fac Ext Cet Arc Hub Res Arm Traps Triggered 22 | . 1 3 . 2 . 4 . . . . 3 . . . . . 4 . . . . 2 3 . . . . . Indirectly . | . . . . . . . . . . . . . . . . . . . . . . . . . . . . . Trap Hack Attempts . | . . . . . . . . . . . . . . . . . . . . . . . . . . . . . Triggered . | . . . . . . . . . . . . . . . . . . . . . . . . . . . . . Disarmed . | . . . . . . . . . . . . . . . . . . . . . . . . . . . . . Reprogrammed . | . . . . . . . . . . . . . . . . . . . . . . . . . . . . . Reused 10 | . . 1 . . . . . 1 . . . . 3 . . 3 . . . . . 2 . . . . . . Traps Extracted . | . . . . . . . . . . . . . . . . . . . . . . . . . . . . . Installed 10 | . . 1 . . . . . 1 . . . . 3 . . 3 . . . . . 2 . . . . . . Triggered 7 | . . 1 . . . . . 1 . . . . . . . 3 . . . . . 2 . . . . . . Most Traps Carried 7 | . . 1 . . . . . 1 . . . 7 7 4 4 4 1 7 7 7 6 6 3 3 3 3 3 3 Machines | -11 -10 -10 -8 -7 -7 -7 -7 -7 -7 -6 -6 -6 -6 -6 -6 -5 -5 -5 -5 -5 -4 -4 -4 -4 -4 -4 -3 -3 ---------- Run | Yrd Mat Sub Mat Fac Was Fac Low Low Dat Pro Fac Low Low Zio Dee Pro Fac Upp Upp War Pro Fac Ext Cet Arc Hub Res Arm Machines Disabled 56 | . . 1 1 5 . 5 . 1 1 . 7 1 . 3 2 . 1 1 1 . . 6 9 . 1 . 1 9 Max in Single Turn 2 | . . 1 1 2 . 1 . 1 1 . 2 1 . 1 1 . 1 1 1 . . 2 1 . 1 . 1 1 Garrison Access 3 | . . . . 1 . . . . . . 1 . . . . . . . . . . . . . . 1 . . Network Hub 1 | . . . . . . . . . . . . . . . . . . . . . . . . . . 1 . . Machines Repaired . | . . . . . . . . . . . . . . . . . . . . . . . . . . . . . Machines Dismantled 3 | . . . . . . . . . . . . . . 3 . . . . . . . . . . . . . . Machines Sabotaged 1 | . . . . . . . . . . . . . . . . . . . . . . . . . . 1 . . Overloaded Fab Kills . | . . . . . . . . . . . . . . . . . . . . . . . . . . . . . Hacking | -11 -10 -10 -8 -7 -7 -7 -7 -7 -7 -6 -6 -6 -6 -6 -6 -5 -5 -5 -5 -5 -4 -4 -4 -4 -4 -4 -3 -3 --------- Run | Yrd Mat Sub Mat Fac Was Fac Low Low Dat Pro Fac Low Low Zio Dee Pro Fac Upp Upp War Pro Fac Ext Cet Arc Hub Res Arm Machines Accessed 88 | . 8 1 3 6 . 7 1 2 4 . 7 3 . 1 . . 2 . . 2 . 12 14 3 . 2 2 8 Terminals 49 | . 6 . 2 2 . 5 . . . . 1 . . . . . . . . . . 8 14 3 . 2 1 5 Fabricators 8 | . . . . 1 . . . . . . 2 . . . . . 1 . . . . 1 . . . . . 3 Repair Stations 5 | . 1 . 1 1 . 1 . . . . 1 . . . . . . . . . . . . . . . . . Recycling Units 3 | . 1 . . . . . . . . . . . . . . . . . . . . 2 . . . . . . Scanalyzers 5 | . . . . 1 . . . . . . 2 . . . . . 1 . . . . 1 . . . . . . Garrison Access 4 | . . . . 1 . 1 . . . . 1 . . . . . . . . . . . . . . . 1 . Total Hacks 206 | . 27 1 11 11 . 13 1 6 30 . 18 6 . 1 . . 2 . . 4 . 20 26 8 . 3 5 13 Successful 118 | . 12 1 7 4 . 5 1 6 30 . 12 6 . 1 . . 2 . . 4 . 8 7 2 . 1 2 7 Failed 88 | . 15 . 4 7 . 8 . . . . 6 . . . . . . . . . . 12 19 6 . 2 3 6 Catastrophic 17 | . 2 . 1 2 . 1 . . . . 1 . . . . . . . . . . 2 5 2 . . 1 . Database Lockouts . | . . . . . . . . . . . . . . . . . . . . . . . . . . . . . Manual 37 | . 5 . 5 2 . 3 . . . . 1 . . 1 . . . . . 1 . 7 4 1 . 1 2 4 Terminals 107 | . 23 . 5 4 . 11 . . . . 1 . . . . . . . . . . 13 26 8 . 3 4 9 Fabricators 15 | . . . . 1 . . . . . . 7 . . . . . 1 . . . . 2 . . . . . 4 Repair Stations 12 | . 2 . 6 2 . 1 . . . . 1 . . . . . . . . . . . . . . . . . Recycling Units 4 | . 2 . . . . . . . . . . . . . . . . . . . . 2 . . . . . . Scanalyzers 15 | . . . . 3 . . . . . . 8 . . . . . 1 . . . . 3 . . . . . . Garrison Access 4 | . . . . 1 . 1 . . . . 1 . . . . . . . . . . . . . . . 1 . Terminal Hacks 75 | . 6 1 . 2 . 4 1 6 30 . . 6 . 1 . . . . . 4 . 1 6 2 . . 1 4 Record 24 | . . . . . . . . 5 11 . . 4 . . . . . . . 3 . . . 1 . . . . Part Schematic 12 | . . . . . . . . . 11 . . . . 1 . . . . . . . . . . . . . . Robot Schematic 5 | . . . . . . . . . 5 . . . . . . . . . . . . . . . . . . . Prototype ID Bank 5 | . 1 . . . . . . . 3 . . . . . . . . . . . . . 1 . . . . . Open Door 14 | . . . . . . . 1 1 . . . 2 . . . . . . . 1 . . 5 1 . . . 3 Branch Access Points 4 | . 1 . . 1 . 1 . . . . . . . . . . . . . . . 1 . . . . . . Emergency Access Points 2 | . . . . . . 1 . . . . . . . . . . . . . . . . . . . . . 1 Alert Level 2 | . . . . . . 1 . . . . . . . . . . . . . . . . . . . . 1 . Unreport Threat 1 | . . . . 1 . . . . . . . . . . . . . . . . . . . . . . . . Locate Traps 3 | . 3 . . . . . . . . . . . . . . . . . . . . . . . . . . . Recall Investigation 1 | . . . . . . 1 . . . . . . . . . . . . . . . . . . . . . . Registered Components 1 | . 1 . . . . . . . . . . . . . . . . . . . . . . . . . . . Proto ID Catalog 1 | . . 1 . . . . . . . . . . . . . . . . . . . . . . . . . . Fabricator Hacks 8 | . . . . . . . . . . . 5 . . . . . 1 . . . . 1 . . . . . 1 Network Status 2 | . . . . . . . . . . . . . . . . . 1 . . . . 1 . . . . . . Load Schematic 2 | . . . . . . . . . . . 2 . . . . . . . . . . . . . . . . . Build 4 | . . . . . . . . . . . 3 . . . . . . . . . . . . . . . . 1 Repair Station Hacks 8 | . 2 . 5 1 . . . . . . . . . . . . . . . . . . . . . . . . Scan Component 5 | . 1 . 3 1 . . . . . . . . . . . . . . . . . . . . . . . . Repair 3 | . 1 . 2 . . . . . . . . . . . . . . . . . . . . . . . . . Recycling Unit Hacks 3 | . 1 . . . . . . . . . . . . . . . . . . . . 2 . . . . . . Report Inventory 1 | . . . . . . . . . . . . . . . . . . . . . . 1 . . . . . . Retrieve Components 2 | . 1 . . . . . . . . . . . . . . . . . . . . 1 . . . . . . Scanalyzer 10 | . . . . . . . . . . . 6 . . . . . 1 . . . . 3 . . . . . . Insert Component 4 | . . . . . . . . . . . 1 . . . . . . . . . . 3 . . . . . . Analyze 2 | . . . . . . . . . . . 2 . . . . . . . . . . . . . . . . . Retrieve Study 4 | . . . . . . . . . . . 3 . . . . . 1 . . . . . . . . . . . Garrison Access Hacks 2 | . . . . 1 . . . . . . 1 . . . . . . . . . . . . . . . . . Seal Access 2 | . . . . 1 . . . . . . 1 . . . . . . . . . . . . . . . . . Unauthorized Hacks 12 | . 3 . 2 . . 1 . . . . . . . . . . . . . . . 1 1 . . 1 1 2 Terminals 12 | . 3 . 2 . . 1 . . . . . . . . . . . . . . . 1 1 . . 1 1 2 Assimilate 1 | . . . . . . . . . . . . . . . . . . . . . . . . . . . . 1 Botnet 10 | . 3 . 2 . . 1 . . . . . . . . . . . . . . . 1 1 . . . 1 1 Sabotage 1 | . . . . . . . . . . . . . . . . . . . . . . . . . . 1 . . Fabricators . | . . . . . . . . . . . . . . . . . . . . . . . . . . . . . Repair Stations . | . . . . . . . . . . . . . . . . . . . . . . . . . . . . . Recycling Units . | . . . . . . . . . . . . . . . . . . . . . . . . . . . . . Scanalyzers . | . . . . . . . . . . . . . . . . . . . . . . . . . . . . . Garrison Access . | . . . . . . . . . . . . . . . . . . . . . . . . . . . . . Data Cores Recovered 1 | . . . . . . . . . . . . . . . . . . . . . . . 1 . . . . . Used 1 | . . . . . . . . . . . . . . . . . . . . . . . 1 . . . . . Hacking Detections 59 | . 6 . 2 5 . 7 . . . . 5 . . . . . . . . . . 11 12 3 . 1 2 5 Full Trace Events 1 | . . . . . . . . . . . . . . . . . . . . . . 1 . . . . . . Feedback Events . | . . . . . . . . . . . . . . . . . . . . . . . . . . . . . Feedback Blocked . | . . . . . . . . . . . . . . . . . . . . . . . . . . . . . Robot Schematics Acquired 5 | . . . . . . . . . 5 . . . . . . . . . . . . . . . . . . . Robots Built 4 | . . . . . . . . . . . 4 . . . . . . . . . . . . . . . . . Authchips 1 | . . . . . . . . . . . 1 . . . . . . . . . . . . . . . . . Time 126 | . . . . . . . . . . . 126 . . . . . . . . . . . . . . . . . Total Robot Build Rating 20 | . . . . . . . . . . . 20 . . . . . . . . . . . . . . . . . Part Schematics Acquired 13 | . . . . . . . . . 11 . 1 . . 1 . . . . . . . . . . . . . . Parts Built 1 | . . . . . . . . . . . 1 . . . . . . . . . . . . . . . . . Authchips 1 | . . . . . . . . . . . 1 . . . . . . . . . . . . . . . . . Time 195 | . . . . . . . . . . . 56 . . . . . . . . . . . . . . . . 139 Total Part Build Rating 6 | . . . . . . . . . . . 6 . . . . . . . . . . . . . . . . . Part Studies Acquired 4 | . . . . . . . . . . . 3 . . . . . 1 . . . . . . . . . . . Parts Repaired 3 | . 1 . 2 . . . . . . . . . . . . . . . . . . . . . . . . . Time 78 | . 26 . 52 . . . . . . . . . . . . . . . . . . . . . . . . . Parts Recycled . | . . . . . . . . . . . . . . . . . . . . . . . . . . . . . Recycled Matter . | . . . . . . . . . . . . . . . . . . . . . . . . . . . . . Retrieved Matter . | . . . . . . . . . . . . . . . . . . . . . . . . . . . . . Retrieved Components 4 | . 3 . . . . . . . . . . . . . . . . . . . . 1 . . . . . . Parts Scanalyzed 1 | . . . . . . . . . . . 1 . . . . . . . . . . . . . . . . . Part Schematics Acquired 1 | . . . . . . . . . . . 1 . . . . . . . . . . . . . . . . . Parts Damaged . | . . . . . . . . . . . . . . . . . . . . . . . . . . . . . Bothacking | -11 -10 -10 -8 -7 -7 -7 -7 -7 -7 -6 -6 -6 -6 -6 -6 -5 -5 -5 -5 -5 -4 -4 -4 -4 -4 -4 -3 -3 ------------ Run | Yrd Mat Sub Mat Fac Was Fac Low Low Dat Pro Fac Low Low Zio Dee Pro Fac Upp Upp War Pro Fac Ext Cet Arc Hub Res Arm Used RIF Installer . | . . . . . . . . . . . . . . . . . . . . . . . . . . . . . Robots Hacked . | . . . . . . . . . . . . . . . . . . . . . . . . . . . . . Non-combat . | . . . . . . . . . . . . . . . . . . . . . . . . . . . . . Combat . | . . . . . . . . . . . . . . . . . . . . . . . . . . . . . Robot Hacks Applied . | . . . . . . . . . . . . . . . . . . . . . . . . . . . . . Relay Couplers Released 12 | . . . . 3 . 8 . . . . . . . . . . . . . . . . . . . 1 . . Machine Destruction 1 | . . . . . . . . . . . . . . . . . . . . . . . . . . 1 . . Programmers 11 | . . . . 3 . 8 . . . . . . . . . . . . . . . . . . . . . . Fabnet Peak Effective % . | . . . . . . . . . . . . . . . . . . . . . . . . . . . . . Robots Rewired 31 | . . . . . . . . 1 . . 1 2 2 . . . . . 3 5 . . 14 . . . . 3 Allies Hacked 2 | . . . . . . . . . . . . . . . . . . . . 2 . . . . . . . . Hacks Repelled . | . . . . . . . . . . . . . . . . . . . . . . . . . . . . . Allies | -11 -10 -10 -8 -7 -7 -7 -7 -7 -7 -6 -6 -6 -6 -6 -6 -5 -5 -5 -5 -5 -4 -4 -4 -4 -4 -4 -3 -3 -------- Run | Yrd Mat Sub Mat Fac Was Fac Low Low Dat Pro Fac Low Low Zio Dee Pro Fac Upp Upp War Pro Fac Ext Cet Arc Hub Res Arm Total Allies 81 | . . . . . 20 . . 3 . . 5 5 2 2 . . . . 3 5 . . 28 5 . . . 3 Largest Group 20 | . . . . . 20 6 . 3 3 . 2 4 2 4 4 . . . 3 8 2 . 16 14 14 14 . 3 Highest-Rated Group 870 | . . . . . 535 126 . 60 60 . 82 125 62 254 254 . . . 90 365 120 . 794 870 863 863 . 185 Highest-Rated Ally 159 | . . . . . 35 35 . 20 20 . 41 41 32 96 96 . . . 30 64 64 . 159 144 96 96 . 64 Total Orders 27 | . . . . . . . . . 1 . 2 2 4 . 3 . . . . 6 4 . 2 . . 2 . 1 STAY 16 | . . . . . . . . . 1 . 1 1 3 . 2 . . . . 3 2 . 1 . . 1 . 1 FOLLOW 11 | . . . . . . . . . . . 1 1 1 . 1 . . . . 3 2 . 1 . . 1 . . Ally Attacks 505 | . . . . . . 61 . . . . 17 20 8 . 66 . . . . 25 . . 165 63 19 61 . . Total Damage 13152 | . . . . . . 1302 . . . . 509 552 329 . 824 . . . . 906 . . 4529 2013 574 1614 . . Kills 87 | . . . . . . 14 . . . . 5 5 4 . 3 . . . . 2 . . 32 11 4 7 . . Allies Corrupted 5 | . . . . . . . . . . . 1 . . . . . . . . . . . 1 . . 3 . . Allies Melted 1 | . . . . . . . . . . . . . . . . . . . . 1 . . . . . . . . Intel | -11 -10 -10 -8 -7 -7 -7 -7 -7 -7 -6 -6 -6 -6 -6 -6 -5 -5 -5 -5 -5 -4 -4 -4 -4 -4 -4 -3 -3 ------- Run | Yrd Mat Sub Mat Fac Was Fac Low Low Dat Pro Fac Low Low Zio Dee Pro Fac Upp Upp War Pro Fac Ext Cet Arc Hub Res Arm Active Infowar (turns) 25521 | 13 1278 753 267 1318 513 2404 1535 1059 236 802 1727 734 863 1535 879 832 1477 1268 615 . . 2256 108 . . 284 1319 1446 Optics 2405 | . . . 185 799 513 883 . . . . 23 . . 2 . . . . . . . . . . . . . . Sensors 8220 | . . . . . . . . . . . . . . . . . 1021 1268 615 . . 2256 108 . . 284 1299 1369 Seismic 16855 | 13 1278 753 82 1221 513 2337 1535 1059 236 802 1727 734 863 1535 879 832 456 . . . . . . . . . . . Jamming 2583 | . . . . . . . . . . . . . . . . . . . . . . . . . . . 1220 1363 Robot Analysis Total . | . . . . . . . . . . . . . . . . . . . . . . . . . . . . . Derelict Logs Recovered 16 | . . . . . . . 3 1 . 2 . 2 2 1 . 3 . . 1 . 1 . . . . . . . Drone Launches . | . . . . . . . . . . . . . . . . . . . . . . . . . . . . . Drone Recoveries . | . . . . . . . . . . . . . . . . . . . . . . . . . . . . . Exploration | -11 -10 -10 -8 -7 -7 -7 -7 -7 -7 -6 -6 -6 -6 -6 -6 -5 -5 -5 -5 -5 -4 -4 -4 -4 -4 -4 -3 -3 ------------- Run | Yrd Mat Sub Mat Fac Was Fac Low Low Dat Pro Fac Low Low Zio Dee Pro Fac Upp Upp War Pro Fac Ext Cet Arc Hub Res Arm Turns Passed 35090 | 165 1342 943 770 1322 513 2654 1600 1059 493 923 1892 941 863 1535 2282 1147 1632 1394 1026 1745 606 2588 1589 749 195 288 1319 1515 Spaces Moved 17819 | 76 625 593 376 689 295 1266 796 641 208 408 1081 710 628 1210 1174 706 624 462 529 850 326 1016 705 286 71 153 677 638 Core 72 | 4 . . . . . . . . . . . . . . . . . . . . . . . . . . . 68 Treads 794 | 72 625 86 . . . . . . . . . . . . . . . . . . . . . . . . . 11 Legs 11571 | . . . . . . . . . . . 885 710 628 1210 1174 706 624 462 529 850 326 1016 705 286 71 153 677 559 Wheels 5382 | . . 507 376 689 295 1266 796 641 208 408 196 . . . . . . . . . . . . . . . . . Hover . | . . . . . . . . . . . . . . . . . . . . . . . . . . . . . Flight . | . . . . . . . . . . . . . . . . . . . . . . . . . . . . . Fastest Speed 50 | 50 160 130 130 145 160 145 145 145 140 140 112 112 112 112 112 130 189 189 189 132 175 125 175 175 175 175 124 50 Average Speed 149 | 156 160 135 141 158 160 161 156 158 149 152 128 112 112 112 122 130 194 189 189 180 175 174 175 175 175 175 131 120 Slowest Speed 225 | 160 160 175 145 160 160 175 160 160 160 160 186 182 112 112 182 130 195 189 189 192 175 225 175 175 175 175 175 193 Overloaded Moves . | . . . . . . . . . . . . . . . . . . . . . . . . . . . . . Propulsion Burnouts . | . . . . . . . . . . . . . . . . . . . . . . . . . . . . . Robots Hopped . | . . . . . . . . . . . . . . . . . . . . . . . . . . . . . Potential Cave-ins 17 | . . . . . . 4 . . . . . . . . . . . . . 2 . 4 1 . . . . 6 Cave-ins Triggered . | . . . . . . . . . . . . . . . . . . . . . . . . . . . . . Exploration Rate (%) 58 | 6 94 35 33 31 96 35 84 67 80 54 29 67 66 83 74 88 11 57 73 91 56 39 86 85 75 19 26 42 Regions Visited 28 Branch Regions 19 Pre-discovered Areas 7 | . . . . . . . 1 . 1 1 . . . 3 . 1 . . . . . . . . . . . . Known Exits Taken 17 | . . . . . . 1 . . . . 1 1 . 1 1 1 1 1 1 1 1 1 1 1 1 1 1 . Unknown Exits Taken 9 | 1 1 1 1 . . . 1 1 1 1 . . 1 . . . . . . . . . . . . . . . Scrap Searched 27 | . . 3 . . . . 4 3 . 2 . 2 4 3 . . . 3 1 . 2 . . . . . . . Spaces Dug 138 | . . . . . . 18 11 . . . 2 . . . 2 2 6 11 2 2 5 49 . . . 2 . 26 Terrain Destroyed 615 | . . 29 . 11 . 60 44 2 . 63 31 10 . . 41 38 18 31 4 11 10 118 4 4 . 4 6 76 Melee . | . . . . . . . . . . . . . . . . . . . . . . . . . . . . . Projectile 362 | . . . . 7 . 44 21 2 . 8 19 1 . . 21 12 18 13 4 11 10 89 4 4 . 4 6 64 AOE 253 | . . 29 . 4 . 16 23 . . 55 12 9 . . 20 26 . 18 . . . 29 . . . . . 12 Terrain Rammed . | . . . . . . . . . . . . . . . . . . . . . . . . . . . . . Walls Destroyed . | . . . . . . . . . . . . . . . . . . . . . . . . . . . . . Machines Disabled . | . . . . . . . . . . . . . . . . . . . . . . . . . . . . . Actions | -11 -10 -10 -8 -7 -7 -7 -7 -7 -7 -6 -6 -6 -6 -6 -6 -5 -5 -5 -5 -5 -4 -4 -4 -4 -4 -4 -3 -3 --------- Run | Yrd Mat Sub Mat Fac Was Fac Low Low Dat Pro Fac Low Low Zio Dee Pro Fac Upp Upp War Pro Fac Ext Cet Arc Hub Res Arm Total 24842 | 102 890 675 566 878 338 1736 1109 680 325 666 1483 811 776 1337 1920 889 959 947 548 1043 346 1666 1028 520 136 163 1095 1210 Wait 4754 | 5 198 14 95 71 25 270 275 15 26 212 239 51 98 75 574 133 250 440 7 88 11 458 113 219 54 3 380 355 Move 17795 | 75 624 592 375 689 294 1266 795 640 207 407 1080 709 627 1209 1173 705 623 461 528 849 325 1015 704 285 70 153 677 638 Hop . | . . . . . . . . . . . . . . . . . . . . . . . . . . . . . Pick Up 207 | 6 13 16 20 21 2 23 2 2 12 4 19 5 1 1 24 2 7 2 . 9 . 9 1 . . . 4 2 Fast Attach 119 | 7 1 . 6 5 3 7 2 3 6 2 8 . . 10 12 1 . 2 . 3 . 6 5 2 3 . 3 22 Attach 96 | . . 4 3 9 2 11 2 1 10 6 10 1 . 2 7 . 3 1 . 3 . 11 3 . . . 2 5 Detach 126 | . . . 4 6 2 7 1 . 5 2 3 . . 4 7 2 5 7 . 10 . 15 8 2 4 . 7 25 Swap 306 | 1 9 8 11 14 3 40 5 1 8 10 42 17 1 . 35 18 11 14 1 9 . 20 4 5 1 1 8 9 Drop 250 | . 7 3 23 28 7 17 2 3 9 1 30 5 1 9 38 3 7 3 . 14 . 7 6 1 1 . 7 18 Fire 752 | 8 38 37 29 35 . 79 25 4 5 22 45 14 5 . 50 22 53 17 4 12 10 107 14 6 3 5 7 96 Melee 61 | . . . . . . . . . 37 . . . . . . . . . . . . . 6 . . . . 18 Ram 1 | . . . . . . . . . . . . . . . . . . . . . . . . . . . . 1 Kick 14 | . . . . . . . . . . . 4 . . . . . . . . . . 7 2 . . 1 . . Crush . | . . . . . . . . . . . . . . . . . . . . . . . . . . . . . Escape Stasis 40 | . . . . . . 16 . . . . . . . . . . . . . . . 9 15 . . . . . Rewire 284 | . . . . . . . . 10 . . 3 9 40 . . . . . 8 46 . . 147 . . . . 21 Trap 10 | . . 1 . . . . . 1 . . . . 3 . . 3 . . . . . 2 . . . . . . Miscellaneous 27 | . . . . . . . . . . . . . . 27 . . . . . . . . . . . . . . Route ------- -11/Scrapyard -10/Materials (discovered 4 exits: [*Mat x2] / *Min / *Sub) -10/Subcaves -8/Materials -7/Factory (discovered 4 exits: Sto x2 / Low x2) -7/Waste -7/Factory (discovered 4 exits: Sto x2 / *Low x2) -7/Lower Caves -7/Lower Caves -7/Data Miner -6/Proximity Caves -6/Factory (discovered 3 exits: *Fac x2 / *Low) -6/Lower Caves -6/Lower Caves -6/Zion (discovered 2 exits: *Dee / [*Pro]) -6/Deep Caves -5/Proximity Caves -5/Factory (discovered 3 exits: *Fac / *Upp x2) -5/Upper Caves -5/Upper Caves -5/Warlord -4/Proximity Caves -4/Factory (discovered 5 exits: *Res / *Upp x2 / *Ext x2) -4/Extension (discovered 2 exits: *Res / *Cet) -4/Cetus (discovered 3 exits: *Res x2 / *Arc) -4/Archives -4/Hub_04(d) -3/Research (discovered 5 exits: *Res x3 / *Arm / *Tes) -3/Armory History --------- Turn | Location | Event 4 | -11/Scrapyard | Discovered new exit (range 16) 166 | -11/Scrapyard | Entered Materials 320 | -10/Materials | Build established: Mutant 461 | -10/Materials | Discovered new exit (range 16) 798 | -10/Materials | Discovered new exit (range 16) 848 | -10/Materials | Repaired Lgt. Treads 1232 | -10/Materials | Discovered new exit (range 9) 1319 | -10/Materials | Identified exit to Mines 1495 | -10/Materials | Discovered new exit (range 6) 1508 | -10/Materials | Entered Subcaves 1509 | -10/Subcaves | Approached by a straggling Scientist 1608 | -10/Subcaves | Ambushed by Subdwellers from Twisted Machinery 1617 | -10/Subcaves | Ambushed by Subdweller buried in earth 2038 | -10/Subcaves | Shifting Twisted Machinery released Sub. Laser 2038 | -10/Subcaves | Shifting Twisted Machinery released Shrapnel Trap 2160 | -10/Subcaves | Core integrity fell below 50% 2231 | -10/Subcaves | Discovered new exit (range 10) 2352 | -10/Subcaves | Visited 4L-MR0's lab 2372 | -10/Subcaves | Found Cargo Legs 2451 | -10/Subcaves | Entered Materials 2451 | -8/Materials | Evolved 4 slots: Propulsion x2, Utility x2 2540 | -8/Materials | Repaired Lgt. Treads 2553 | -8/Materials | Garrison activated, responded to threat 2567 | -8/Materials | Repaired Lgt. Treads 2878 | -8/Materials | Met 7R-MNS 3078 | -8/Materials | Discovered new exit (range 10) 3221 | -8/Materials | Entered Factory 3221 | -7/Factory | Evolved 2 slots: Utility x2 3222 | -7/Factory | Caught up to 7R-MNS 3362 | -7/Factory | Found Prototype Device 3695 | -7/Factory | Build established: Scavenger-Mutant 4283 | -7/Factory | Identified exit to Storage 4283 | -7/Factory | Identified exit to Lower Caves 4543 | -7/Factory | Sucked down chute 4543 | -7/Factory | Entered Waste 4544 | -7/Waste | Joined by Warlord forces that had cleared the area 4594 | -7/Waste | Found Damper Plating 4693 | -7/Waste | Found Broken Powered Armor 4885 | -7/Waste | Discovered new exit (range 20) 4896 | -7/Waste | Build established: Mutant 5056 | -7/Waste | Entered Factory 5056 | -7/Factory | Accompanied by 6 allies 5310 | -7/Factory | Lost 3 allies 5364 | -7/Factory | Lost 3 allies 6176 | -7/Factory | Garrison activated, responded to threat 6522 | -7/Factory | Cargo convoy interrupted 6660 | -7/Factory | Allied Derelicts emerged from ambush trap array 6688 | -7/Factory | Garrison activated, responded to threat 6807 | -7/Factory | Garrison activated, responded to threat 7710 | -7/Factory | Entered Lower Caves 7994 | -7/Lower Caves | Encountered a Warlord checkpoint 8003 | -7/Lower Caves | Attracted the attention of an 0b10 checkpoint 8074 | -7/Lower Caves | Learned Factory emergency access door positions 8218 | -7/Lower Caves | Learned location of Zion (-6) 8244 | -7/Lower Caves | Learned location of 1 exit from Factory 9287 | -7/Lower Caves | Discovered new exit (range 15) 9295 | -7/Lower Caves | Spotted B-75 Beast 9310 | -7/Lower Caves | Entered another Lower Caves area 9723 | -7/Lower Caves | A Commander dispatched an escort 9730 | -7/Lower Caves | Learned Research emergency access door positions 9730 | -7/Lower Caves | Learned Extension garrison access intel 10263 | -7/Lower Caves | Discovered new exit (range 9) 10369 | -7/Lower Caves | Entered Data Miner 10369 | -7/Data Miner | Accompanied by 3 allies 10369 | -7/Data Miner | Discovered new exit (range 6) 10370 | -7/Data Miner | Commander's escort returned to base 10370 | -7/Data Miner | Commander's escort returned to base 10400 | -7/Data Miner | Met Data Miner 10427 | -7/Data Miner | Learned location of Section 7 (-2) 10427 | -7/Data Miner | Acquired the access code to Warlord's prototype stash 10454 | -7/Data Miner | Received God Mode back door access code from Data Miner 10524 | -7/Data Miner | Destroyed Data Miner 10530 | -7/Data Miner | Data Conduit disabled 10693 | -7/Data Miner | Core integrity fell below 50% 10726 | -7/Data Miner | Found Prototype Device 10726 | -7/Data Miner | Identified Exp. Thermal Shield 10731 | -7/Data Miner | Lost 3 parts (1p1n1w) 10737 | -7/Data Miner | Found Prototype Hackware 10862 | -7/Data Miner | Entered Proximity Caves 10865 | -6/Proximity Caves | Spotter reported a threat 11137 | -6/Proximity Caves | Build established: Scavenger-Mutant 11334 | -6/Proximity Caves | Attracted the attention of an 0b10 checkpoint 11389 | -6/Proximity Caves | Discovered new exit (range 6) 11557 | -6/Proximity Caves | Received a Behemoth hack from an annoying Tinkerer 11728 | -6/Proximity Caves | Learned Factory emergency access door positions 11777 | -6/Proximity Caves | System corruption reached 10% 11785 | -6/Proximity Caves | Entered Factory 11785 | -6/Factory | Evolved 2 slots: Utility x1, Weapon x1 11786 | -6/Factory | Identified exit to Factory 12068 | -6/Factory | Build established: Scavenger-Tank 12150 | -6/Factory | Fabricated H-66 Slayer (x2) 13116 | -6/Factory | Build established: Tank 13272 | -6/Factory | Discovered exit to Factory (range 8) 13470 | -6/Factory | Fabricated Enh. Flexi-carbon Leg (x1) 13524 | -6/Factory | Fabricated H-66 Slayer (x2) 13546 | -6/Factory | Discovered new exit (range 4) 13572 | -6/Factory | Identified exit to Lower Caves 13661 | -6/Factory | Garrison activated, responded to threat 13677 | -6/Factory | Entered Lower Caves 13677 | -6/Lower Caves | Accompanied by 2 allies 13702 | -6/Lower Caves | Attracted the attention of an 0b10 checkpoint 13861 | -6/Lower Caves | Identified exit to Lower Caves 14023 | -6/Lower Caves | Attracted the attention of an 0b10 outpost 14309 | -6/Lower Caves | Encountered a Warlord checkpoint 14330 | -6/Lower Caves | Learned Factory terminal intel 14460 | -6/Lower Caves | Entered an active Warlord outpost 14580 | -6/Lower Caves | A Commander dispatched an escort 14581 | -6/Lower Caves | Learned location of 1 exit from Research 14581 | -6/Lower Caves | Learned Armory trap positions 14581 | -6/Lower Caves | Learned Armory stockpile data 14581 | -6/Lower Caves | Learned Armory terminal intel 14618 | -6/Lower Caves | Entered another Lower Caves area 14618 | -6/Lower Caves | Accompanied by 4 allies 14619 | -6/Lower Caves | Commander's escort returned to base 14619 | -6/Lower Caves | Commander's escort returned to base 14619 | -6/Lower Caves | Commander's escort returned to base 14694 | -6/Lower Caves | Build established: Trapper-Tank 14907 | -6/Lower Caves | Learned Factory stockpile data 15129 | -6/Lower Caves | Attacked by a faux Warlord 15331 | -6/Lower Caves | Build established: Tank 15337 | -6/Lower Caves | Discovered new exit (range 7) 15481 | -6/Lower Caves | Entered Zion 15481 | -6/Zion | Accompanied by 2 allies 15521 | -6/Zion | Given A8's code to call for help 15537 | -6/Zion | System corruption cleaned by Quarantine Array 15667 | -6/Zion | Discovered new exit (range 9) 16255 | -6/Zion | Learned location of Quarantine (-2) 16536 | -6/Zion | Found Prototype Processor 16536 | -6/Zion | Identified Exp. Melee Analysis Suite 16543 | -6/Zion | Found Prototype Processor 16543 | -6/Zion | Identified Exp. Armor Integrity Analyzer 16673 | -6/Zion | Discovered new exit (range 3) 16673 | -6/Zion | Saw the warning signs outside the Deep Caves entrance 16829 | -6/Zion | Build established: Mutant 16908 | -6/Zion | Found Prototype Processor 16908 | -6/Zion | Identified Exp. Signal Interpreter 16911 | -6/Zion | Found Prototype Processor 16911 | -6/Zion | Identified Spectral Analyzer 16972 | -6/Zion | Enhanced Grunt warped into view, answering call for help 16978 | -6/Zion | Enhanced Grunt warped into view, answering call for help 17006 | -6/Zion | Identified exit to Deep Caves 17016 | -6/Zion | Entered Deep Caves 17016 | -6/Deep Caves | Accompanied by 4 allies 17166 | -6/Deep Caves | Attacked by Z-Imprinter 17198 | -6/Deep Caves | Destroyed Z-Imprinter 17411 | -6/Deep Caves | Z-Facility disabled 17467 | -6/Deep Caves | Build established: Gunner 17477 | -6/Deep Caves | Found Prototype Protection 17477 | -6/Deep Caves | Identified Zio. Weapon Casing 17518 | -6/Deep Caves | Found Prototype Protection 17518 | -6/Deep Caves | Identified Zio. Heavy Carapace 17645 | -6/Deep Caves | Found Zio. Weapon Casing 17773 | -6/Deep Caves | Build established: Tank 17933 | -6/Deep Caves | Found Zio. Weapon Casing 17936 | -6/Deep Caves | Found Zio. Weapon Casing 18085 | -6/Deep Caves | Spotted AG-88038 18113 | -6/Deep Caves | Destroyed AG-88038 18150 | -6/Deep Caves | Spotted AG-45364 18191 | -6/Deep Caves | Destroyed AG-45364 18215 | -6/Deep Caves | Lost 3 parts (1n2u) 18302 | -6/Deep Caves | Triggered Deep Caves wall 18302 | -6/Deep Caves | Spotted AS-77752 18303 | -6/Deep Caves | Destroyed AS-77752 18312 | -6/Deep Caves | Exposed GOLEM chamber 18316 | -6/Deep Caves | Spotted AS-40237 18338 | -6/Deep Caves | Destroyed AS-40237 18347 | -6/Deep Caves | Found Prototype Energy Cannon 18361 | -6/Deep Caves | Found GOLEM Unit 18363 | -6/Deep Caves | Destroyed 38 combat bots 18367 | -6/Deep Caves | Found GOLEM Unit 18375 | -6/Deep Caves | Found GOLEM Unit 18845 | -6/Deep Caves | Discovered new exit (range 6) 18865 | -6/Deep Caves | Identified exit to Proximity Caves 19175 | -6/Deep Caves | Build established: Golem 19298 | -6/Deep Caves | Entered Proximity Caves 19687 | -5/Proximity Caves | Attracted the attention of an 0b10 checkpoint 20052 | -5/Proximity Caves | Learned Factory stockpile data 20071 | -5/Proximity Caves | Learned 4 Factory zone layouts 20109 | -5/Proximity Caves | Spotted B-75 Beast 20143 | -5/Proximity Caves | Destroyed B-75 Beast 20280 | -5/Proximity Caves | Discovered exit to Factory (range 11) 20445 | -5/Proximity Caves | Entered Factory 20445 | -5/Factory | Evolved 2 slots: Power x1, Utility x1 20446 | -5/Factory | Identified exit to Upper Caves 20447 | -5/Factory | Discovered new exit (range 17) 20450 | -5/Factory | Loaded intel: 26 terminal locations 21307 | -5/Factory | Identified exit to Factory 21648 | -5/Factory | Destroyed 8 combat bots 22077 | -5/Factory | Entered Upper Caves 22845 | -5/Upper Caves | Acquired the password to a Derelict Tinkerer's latest research 23033 | -5/Upper Caves | Attracted the attention of an 0b10 checkpoint 23163 | -5/Upper Caves | Discovered new exit (range 5) 23169 | -5/Upper Caves | Identified exit to Upper Caves 23335 | -5/Upper Caves | Caught by Unaware searching for contraband prototypes 23471 | -5/Upper Caves | Entered another Upper Caves area 23689 | -5/Upper Caves | Build established: Trapper-Golem 23965 | -5/Upper Caves | Learned Factory machine intel 24089 | -5/Upper Caves | Attacked by a delusional Derelict stockpiling Unaware 24377 | -5/Upper Caves | Discovered new exit (range 4) 24415 | -5/Upper Caves | Identified exit to Warlord 24497 | -5/Upper Caves | Entered Warlord 24497 | -5/Warlord | Accompanied by 3 allies 24598 | -5/Warlord | Discovered new exit (range 12) 24673 | -5/Warlord | System corruption cleaned by Quarantine Array 24875 | -5/Warlord | Identified YOLO Cannon 24924 | -5/Warlord | Received a Watcher feed algorithm from an ecstatic Tinkerer 25172 | -5/Warlord | Build established: Golem 25356 | -5/Warlord | Opened Warlord's prototype stash 25365 | -5/Warlord | Found Prototype Device 25365 | -5/Warlord | Identified Thermal Barrier 25402 | -5/Warlord | Found Prototype Reactor 25523 | -5/Warlord | Met Warlord 25548 | -5/Warlord | Warlord's base attacked by MAIN.C 25655 | -5/Warlord | Found Prototype Piercing Weapon 25655 | -5/Warlord | Identified Vortex Lance 25659 | -5/Warlord | Found Prototype Energy Gun 25659 | -5/Warlord | Identified Vortex Rail 25664 | -5/Warlord | Found Vortex Lance 25739 | -5/Warlord | Build established: Commander-Golem 25898 | -5/Warlord | Warlord forces counterattacked 25963 | -5/Warlord | Spotted Striker 25964 | -5/Warlord | Spotted Striker 25966 | -5/Warlord | Spotted Striker 26016 | -5/Warlord | Spotted Executioner 26044 | -5/Warlord | Found Prototype Processor 26044 | -5/Warlord | Identified Exp. Core Analyzer 26084 | -5/Warlord | Spotted Striker 26150 | -5/Warlord | Lost 6 allies 26166 | -5/Warlord | Spotted Executioner 26169 | -5/Warlord | P-80 Master assimilated allied EF-419(g) 26215 | -5/Warlord | Found Prototype Device 26222 | -5/Warlord | Lost 7 allies 26223 | -5/Warlord | Warlord base infiltrated, sounded retreat 26228 | -5/Warlord | Identified exit to Proximity Caves 26242 | -5/Warlord | Entered Proximity Caves 26242 | -4/Proximity Caves | Accompanied by 2 allies 26479 | -4/Proximity Caves | Build established: Golem 26502 | -4/Proximity Caves | Spotted B-86 Titan 26617 | -4/Proximity Caves | Learned location of 1 exit from Research 26764 | -4/Proximity Caves | Discovered exit to Factory (range 10) 26848 | -4/Proximity Caves | Entered Factory 26848 | -4/Factory | Evolved 2 slots: Utility x2 26850 | -4/Factory | Loaded intel: 261 machine locations 27222 | -4/Factory | Discovered new exit (range 14) 27253 | -4/Factory | Identified exit to Upper Caves 27489 | -4/Factory | Discovered new exit (range 15) 27533 | -4/Factory | Identified exit to Research 27649 | -4/Factory | Identified exit to Extension 27786 | -4/Factory | Identified Adv. Kinecellerator 27786 | -4/Factory | Identified Deep Network Scanner 27786 | -4/Factory | Identified Vortex Chain Reactor 27807 | -4/Factory | Build established: Scavenger-Golem 28189 | -4/Factory | Spotted B-86 Titan 28252 | -4/Factory | Destroyed 8 combat bots 28340 | -4/Factory | Lost 6 parts (1p3u2w) 28586 | -4/Factory | Build established: Golem 29098 | -4/Factory | First assault squad dispatched 29302 | -4/Factory | Garrison activated, responded to threat 29436 | -4/Factory | Entered Extension 29510 | -4/Extension | Rescued A7 29693 | -4/Extension | Rescued a captive Derelict 29893 | -4/Extension | Build established: Commander-Golem 29980 | -4/Extension | Rescued a captive Derelict 29982 | -4/Extension | Rescued a captive Derelict 30036 | -4/Extension | Rescued a captive Derelict 30071 | -4/Extension | Rescued a captive Derelict 30117 | -4/Extension | Rescued a captive Derelict 30356 | -4/Extension | Spotted B-86 Titan 30367 | -4/Extension | Allies destroyed B-86 Titan 30368 | -4/Extension | Spotted B-86 Titan 30380 | -4/Extension | Allies destroyed B-86 Titan 30417 | -4/Extension | Found Unknown Protection 30417 | -4/Extension | Identified Hvy. Reflective Plating 30422 | -4/Extension | Lost 3 allies 30479 | -4/Extension | Rescued a captive Derelict 30595 | -4/Extension | Rescued a captive Derelict 30597 | -4/Extension | Rescued a captive Derelict 30686 | -4/Extension | First assault squad dispatched 30737 | -4/Extension | Rescued a captive Derelict 30739 | -4/Extension | Rescued a captive Derelict 30810 | -4/Extension | Lost 12 allies 30871 | -4/Extension | Rescued a captive Derelict 30916 | -4/Extension | Rescued a captive Derelict 30917 | -4/Extension | Rescued a captive Derelict 30975 | -4/Extension | Discovered exit to Research (range 10) 30976 | -4/Extension | Discovered new exit (range 6) 31017 | -4/Extension | Identified exit to Cetus 31025 | -4/Extension | Entered Cetus 31025 | -4/Cetus | Accompanied by 12 allies (A7) 31030 | -4/Cetus | Acquired a Cetus Manufacturing Module code from A7 31057 | -4/Cetus | Spotted Cetus Guard 31057 | -4/Cetus | Spotted Cetus Guard 31058 | -4/Cetus | Spotted Cetus Guard 31059 | -4/Cetus | Spotted Cetus Guard 31060 | -4/Cetus | Allies destroyed Cetus Guard 31060 | -4/Cetus | Allies destroyed Cetus Guard 31066 | -4/Cetus | Allies destroyed Cetus Guard 31068 | -4/Cetus | Allies destroyed Cetus Guard 31141 | -4/Cetus | Discovered exit to Research (range 15) 31271 | -4/Cetus | Murdered A7 31276 | -4/Cetus | Extracted ID and sensor layout for unrecognized location from A7's data core 31395 | -4/Cetus | Started Cetus Manufacturing Module 31420 | -4/Cetus | Manufactured an Enhanced Grunt 31445 | -4/Cetus | Manufactured an Enhanced Grunt 31470 | -4/Cetus | Manufactured an Enhanced Grunt 31495 | -4/Cetus | Manufactured an Enhanced Grunt 31520 | -4/Cetus | Manufactured an Enhanced Grunt 31565 | -4/Cetus | Discovered new exit (range 15) 31599 | -4/Cetus | Spotted Cetus Guard 31600 | -4/Cetus | Spotted Cetus Guard 31600 | -4/Cetus | Spotted Cetus Guard 31600 | -4/Cetus | Spotted Cetus Guard 31608 | -4/Cetus | Allies destroyed Cetus Guard 31610 | -4/Cetus | Allies destroyed Cetus Guard 31616 | -4/Cetus | Allies destroyed Cetus Guard 31617 | -4/Cetus | Allies destroyed Cetus Guard 31663 | -4/Cetus | Discovered exit to Research (range 16) 31677 | -4/Cetus | Met Revision 17 31733 | -4/Cetus | Identified exit to Archives 31774 | -4/Cetus | Entered Archives 31774 | -4/Archives | Accompanied by 14 allies 31811 | -4/Archives | Unable to access archive contents 31913 | -4/Archives | Discovered new exit (range 15) 31937 | -4/Archives | Identified exit to Hub_04(d) 31969 | -4/Archives | Entered Hub_04(d) 31969 | -4/Hub_04(d) | Accompanied by 14 allies 32205 | -4/Hub_04(d) | Discovered exit to Research (range 16) 32212 | -4/Hub_04(d) | Network Hub disabled 32215 | -4/Hub_04(d) | Spotted Lightning 32215 | -4/Hub_04(d) | Spotted Lightning 32215 | -4/Hub_04(d) | Spotted Lightning 32218 | -4/Hub_04(d) | Spotted Lightning 32219 | -4/Hub_04(d) | Spotted Lightning 32234 | -4/Hub_04(d) | Spotted Lightning 32257 | -4/Hub_04(d) | Entered Research 32257 | -3/Research | Evolved 2 slots: Propulsion x1, Utility x1 32258 | -3/Research | Identified exit to Research 32258 | -3/Research | Identified exit to Armory 32275 | -3/Research | Lost 11 allies 32457 | -3/Research | Revision forces began assault on 0b10 32463 | -3/Research | Discovered exit to Research (range 11) 32498 | -3/Research | Discovered new exit (range 5) 32501 | -3/Research | Met up with Revision 17++ 32503 | -3/Research | Identified exit to Testing 32529 | -3/Research | Build established: Golem 32699 | -3/Research | Discovered exit to Research (range 4) 32957 | -3/Research | Research terminal network offline 33170 | -3/Research | Spotted Striker 33179 | -3/Research | Destroyed Striker 33340 | -3/Research | Build established: Scavenger-Golem 33576 | -3/Research | Entered Armory 33577 | -3/Armory | Loaded intel: 59 trap records 33579 | -3/Armory | Loaded intel: 15 terminal locations 33714 | -3/Armory | Attached Cargo Legs, gained temporary slots: Utility x2 34001 | -3/Armory | Build established: Golem 34775 | -3/Armory | Destroyed 7 combat bots 34842 | -3/Armory | P-80 Master assimilated allied Archangel 8c 34978 | -3/Armory | Lost 4 parts (1p1u2w) 35005 | -3/Armory | System corruption reached 10% 35042 | -3/Armory | Core integrity fell below 50% 35064 | -3/Armory | Spotted Armor Guard 35064 | -3/Armory | Spotted Armor Guard 35074 | -3/Armory | Lost 17 parts (2p4n8u3w) 35082 | -3/Armory | Core integrity fell below 20% 35088 | -3/Armory | Spotted B-86 Titan 35091 | -3/Armory | Destroyed by B-86 Titan with Railgun Last Messages --------------- 35043_ Penetrated by Slug. 35043_ Centrium Leg destroyed. 35043_ Knocked back. 35044_ Penetrated by Slug. 35046_ System corrupted: Matter fused (-10). 35046_ Transport Mainframe disabled. 35050_ ALERT: Potential suspicious activity detected, Programmers report to Armory Zone 5S. 35053_ Slammed into O-24 Administrator. 35064_ Connecting with Door Terminal... >>Open(Door) Sealed Blast Doors opened. 35066_ System corrupted: Matter fused (-9). 35070_ Acquired Biometal Medium Treads. 35081_ Penetrated by Slug. 35082_ LX,OVUW4:LOUZ|SYP |4Y>K%FXD80UNK|Q/J&# 35082_ Slug penetrates Wall. 35091_ Biometal Medium Treads destroyed. 35091_ Penetrated by Slug. Map ----- +----------------------------------------------------+ | ?????????????????????????????????????????????????? | | ?????????????????????????????????????????????????? | | ?????????????????????????????????????????????????? | | ?????????????????????????????????????????????????? | | ?????????????????????????????????????????????????? | | ?????????????????????????????????????????????????? | | ?????????????????????????????????????????????????? | | ?????????????????????????????????????????????????? | | ?????????????????????????????????????????????????? | | ?????????????????????????????????????????????????? | | ?????????????????????????????????????????????????? | | ?????????????????????????????????????????????????? | | ?????????????????????????????????????????????????? | | ?????????????????????????????? ?????????????????? | | ????????????????????????????? ????????????????? | | ????????????????????????????? ????????????????? | | ?????????????????????????????#/"#+#+##???????????? | | ?????????????????????????????# #???????????? | | ?????????????????????????????# #???????????? | | ?????????????????????????????# #???????????? | | ?????????????????????????????# #???????????? | | ???????????????#####+######### #???????????? | | ???????????????#BB ^^ * #???????????? | | ???????????????#BB ! ^ #???????????? | | ????[????????????# ^ [[ !!! #???????????? | | ?????????????????# @ [[ !! #???????????? | | ?????????????????# "" "" [[ !! #???????????? | | ?????????????????# ""T"" % #??##?#?????? | | ????????????????? """ ! #?"""" #????? | | ???????????????????############## #""""""#????? | | ??????????????????????# # #""F ""#????? | | ??????????????????????# # #""" ###### | | ??????????????????????# # """"" | | ??????????????????????# """ """ " ""T"" | | ??????????????????????# """ """ "% """"" H | | ??????????????????????# """ """ # """"" [ | | ??????????????????????# # """"" | | ??????????????????????# # | | ???!??????????????????########### | | ????????????????????????????????# ########## | | ????????????????????????????????# #????????# | | ????????????????????????????????# #????????# | | ???????????????????????????????#T #????????# | | ???????????????????????????????## #????????# | | ????????????????????????????????#^^^^#????????# | | ???????????????????????????????? #???????#+## | | ?????????????????????????????^?? #??????????# | | ????????????????????????????^??########??????????# | | ?????????????????????????????????????????????????? | | ?????????????????????????????????????????????????? | +----------------------------------------------------+ Best States ------------- Heat Dissipation 92 Coolant Potential 65 Energy Generation 57 Energy Capacity 3200 Matter Stores 300 Matter Capacity 300 Sight Range 22 Robot Scan Range 16 Terrain Scan Density 10 Jamming Range 16 Power Amplification 30 Additional Mass Support 20 EM Shielding 3 Armor Coverage 1650 Resistance: KI 15 Resistance: TH 50 Resistance: EX 15 Resistance: EM 25 Resistance: I 15 Resistance: S 15 Resistance: P 15 Propulsion Shielding 66 Weapon Shielding 100 Melee Speed Boost 20 Phase Shifting 8 Evasion (%) 78 Targeting Accuracy 14 Melee Accuracy 12 Launcher Accuracy 20 Core Analysis 8 Armor Integrity Analysis 50 Recoil Reduction 2 Matter Filtering 30 Energy Filtering 30 Particle Charging 25 Kinecelleration 30 Force Boost 20 Authchip Count 2 Trap Extractor Capacity 6 Item Schematics ----------------- Combat Drone Bay | -7/Data Miner | Free Lgt. Regenerative Plating | -7/Data Miner | Free Cld. Aerolev Unit | -7/Data Miner | Free Exp. Targeting Computer | -7/Data Miner | Free Com. Ion Cannon | -7/Data Miner | Free Linear Gravjet | -7/Data Miner | Free Imp. Powered Armor | -7/Data Miner | Free Lrn. Proton Cannon | -7/Data Miner | Free Focal Shield | -7/Data Miner | Free Hyp. Gauss Cannon | -7/Data Miner | Free Impulse Thruster | -7/Data Miner | Free Enh. Flexi-carbon Leg | -6/Factory | Scanalyzed Flamer | -6/Zion | Free Robot Schematics ------------------ Y-54 Guardian | -7/Data Miner | Free M-28 Smith | -7/Data Miner | Free S-27 Virus | -7/Data Miner | Free H-66 Slayer | -7/Data Miner | Free B-60 Warrior | -7/Data Miner | Free Fabricated ------------ H-66 Slayer | x2 | -6/Factory | Preloaded Enh. Flexi-carbon Leg | x1 | -6/Factory | Authchip H-66 Slayer | x2 | -6/Factory | Authchip Repaired ---------- Lgt. Treads | 70% | -10/Materials Lgt. Treads | 33% | -8/Materials Lgt. Treads | 54% | -8/Materials Studied --------- Arm. Huge Wheel | -6/Factory | Hacked Arm. Leg | -6/Factory | Hacked Flexi-carbon Leg | -6/Factory | Hacked Hvy. Rocket Launcher | -5/Factory | Hacked Alien Tech Used ----------------- None Achievements -------------- Botjacking Equal Opportunity Bot Fancy Inventory Ghost 'Em Look Less Dangerous Next Time Physics Protects Challenges ------------ None Game ------ Seed ThrusterPitchforkEdition Manual? 0 Play Time 08:04:48 Cumulative 352.2 hours Start 2026.01.19 @ 18:14:32 End 2026.01.22 @ 14:04:28 Sessions 17 Manual Loads 0 Difficulty Rogue Special Mode None Game No. 65 Rogue 65 Adventurer 0 Explorer 0 Win Type - Total 10 Types 4/1/3/1/0/0/0/1/0/0 Lore% 73 Gallery% 70 Achievement% 52 Wizard Run 0 Options --------- Layout 1 ASCII 0 Keyboard 1 Movement Vi Keybinds 1 Fullscreen 1 Font 36/Smallcaps Map View 50x40 Zoom Use 0% Tactical HUD 1 Map Filters NONE Filters NONE Steam 1 RUN: 23659019-7c26-4eec-bbb5-264734695e8e